Department Family,Date Paid,Expense Type,Expense Area,Supplier,Transaction Number,Amount,Vat Inclusive
Crown Prosecution Service ,02/02/22,Crown Court Graduated Fee Scheme,Mersey Cheshire Complex Casework Unit,Harrington Street Chambers,1131337/MJRR,"26,069.40",Y
Crown Prosecution Service ,02/02/22,Crown Court Graduated Fee Scheme,Mersey Cheshire Complex Casework Unit,Harrington Street Chambers,1131337/NPR,"52,140.00",Y
Crown Prosecution Service ,02/02/22,Crown Court Graduated Fee Scheme,Yorks and Humbs CC Legal,Kings Bench Walk Leeds,120962/NCQC,"25,021.50",Y
Crown Prosecution Service ,02/02/22,General Professional Services,Strategy and Policy,Crest Advisory UK Ltd London,1271,"67,380.00",Y
Crown Prosecution Service ,02/02/22,Crown Court Graduated Fee Scheme,North West Complex Casework Unit,Exchange Chambers - Manchester,583609 AS,"58,053.24",Y
Crown Prosecution Service ,02/02/22,Admin agency staff,Commercial,Michael Page International Recruitment Limited Slough,6789901,"25,835.40",Y
Crown Prosecution Service ,02/02/22,Admin agency staff,Commercial,Michael Page International Recruitment Limited Slough,6789907,"42,796.66",Y
Crown Prosecution Service ,02/02/22,Crown Court Graduated Fee Scheme,West Midlands Complex Casework Unit,No 5 Fountain Court Chambers,799700/MPB/MINTO,"61,931.04",Y
Crown Prosecution Service ,02/02/22,Crown Court Graduated Fee Scheme,West Midlands Complex Casework Unit,No 5 Fountain Court Chambers,799700/SCO/MINTO,"31,195.20",Y
Crown Prosecution Service ,02/02/22,Short term leases from 2 to 12 months: IT and Equipment,Print Contract,Xerox (UK) Ltd,900216106,"127,975.58",
Crown Prosecution Service ,02/02/22,Recoverable VAT control,Balance Sheet,Xerox (UK) Ltd,900216106,"25,595.12",Y
Crown Prosecution Service ,02/02/22,Apprenticeship Levy payments Permanent,Other Corporate Admin Payments,HM Revenue and Customs,948PB000021422210,"7,251.60",
Crown Prosecution Service ,02/02/22,PAYE payable,Balance Sheet,HM Revenue and Customs,948PB000021422210,"3,740,623.56",
Crown Prosecution Service ,02/02/22,Apprenticeship Levy payments Permanent,Other Corporate Programme Payments,HM Revenue and Customs,948PB000021422210,"113,608.40",
Crown Prosecution Service ,02/02/22,National Insurance payable,Balance Sheet,HM Revenue and Customs,948PB000021422210,"4,537,655.70",
Crown Prosecution Service ,02/02/22,Presentational Equipment,London South Complex Casework Unit,Evidential Ltd Manchester,INV-16608,"29,424.90",Y
Crown Prosecution Service ,03/02/22,Crown Court Graduated Fee Scheme,London North Complex Casework Unit,23 Essex Street Chambers,181391-JAP-trial,"48,411.00",Y
Crown Prosecution Service ,03/02/22,Crown Court Graduated Fee Scheme,North West Complex Casework Unit,Exchange Chambers Leeds ,583609-1/AHQC,"115,752.60",Y
Crown Prosecution Service ,03/02/22,Crown Court Graduated Fee Scheme,London North Complex Casework Unit,5 King's Bench Walk,AOQC173135,"52,848.60",Y
Crown Prosecution Service ,03/02/22,Crown Court Graduated Fee Scheme,London North Complex Casework Unit,5 King's Bench Walk,BHO173135,"26,596.80",Y
Crown Prosecution Service ,04/02/22,Crown Court Graduated Fee Scheme,London North Complex Casework Unit,6 Kings Bench Walk- Chambers of D Fisher & D Perry,102155 DEN2,"26,496.30",Y
Crown Prosecution Service ,04/02/22,Crown Court Graduated Fee Scheme,South East Complex Casework Unit,2 Kings Bench Walk London,277778-RA-OFB2,"34,991.40",Y
Crown Prosecution Service ,04/02/22,Recoverable VAT control,Balance Sheet,Ernst & Young LLP London,GB01G000269545,"8,000.00",Y
Crown Prosecution Service ,04/02/22,Individual Learning Accounts,CPS Direct Out of Hours Prosecutors,Ernst & Young LLP London,GB01G000269545,815.00,
Crown Prosecution Service ,04/02/22,External Training,CPS Direct Out of Hours Prosecutors,Ernst & Young LLP London,GB01G000269545,"14,185.00",
Crown Prosecution Service ,04/02/22,External Training,CPS Direct Management Team,Ernst & Young LLP London,GB01G000269545,"10,000.00",
Crown Prosecution Service ,04/02/22,External Training,CPS Direct Business Centre,Ernst & Young LLP London,GB01G000269545,"14,611.00",
Crown Prosecution Service ,04/02/22,Individual Learning Accounts,CPS Direct Business Centre,Ernst & Young LLP London,GB01G000269545,389.00,
Crown Prosecution Service ,04/02/22,Office equipment and furniture Non capital purchases,Estate and FM: Programme,Senator International Ltd Lancashire,S01714537,"76,084.78",Y
Crown Prosecution Service ,04/02/22,Other Staff Costs,Other Corporate Admin Payments,Reward Gateway (UK) Ltd,UK045603SI,"30,000.00",
Crown Prosecution Service ,07/02/22,Crown Court Graduated Fee Scheme,Mersey Cheshire Complex Casework Unit,Harrington Street Chambers,1150912/IU3,"30,094.20",Y
Crown Prosecution Service ,07/02/22,Crown Court Graduated Fee Scheme,East of England Crown Court,Red Lion Chambers (18 RLC),153444MABtrial2,"30,585.00",Y
Crown Prosecution Service ,07/02/22,Crown Court Graduated Fee Scheme,Counter Terrorism Unit: Internal Funding,Red Lion Chambers (18 RLC),162157NPS,"25,359.61",Y
Crown Prosecution Service ,07/02/22,Recoverable VAT control,Balance Sheet,CGI IT UK Ltd,GB014074769,"16,621.82",Y
Crown Prosecution Service ,07/02/22,IT services,Service Desk Contract,CGI IT UK Ltd,GB014074769,"83,109.08",
Crown Prosecution Service ,07/02/22,Recoverable VAT control,Balance Sheet,FlyForm LTD Cardiff,INV-10605,"4,379.21",Y
Crown Prosecution Service ,07/02/22,IT services,DTS Programme Project Cost,FlyForm LTD Cardiff,INV-10605,"21,895.99",
Crown Prosecution Service ,07/02/22,IT services,DTS Programme Project Cost,eSynergy Solutions Ltd,INV00000422,"78,948.00",Y
Crown Prosecution Service ,08/02/22,Lease liability non current lease payments,Balance Sheet,Government Property Agency London,00000001/14066,"35,100.00",
Crown Prosecution Service ,08/02/22,Lease liability non current lease payments,Balance Sheet,Government Property Agency London,00000001/14068,"30,900.01",
Crown Prosecution Service ,08/02/22,Property management fees,Estate and FM: Programme,Government Property Agency London,00000001/14071,"61,495.47",Y
Crown Prosecution Service ,08/02/22,National non domestic rates,Estate and FM: Programme,Government Property Agency London,00000001/14071,"38,400.00",
Crown Prosecution Service ,08/02/22,Lease liability non current lease payments,Balance Sheet,Government Property Agency London,00000001/14072,"26,640.00",
Crown Prosecution Service ,08/02/22,Lease liability non current lease payments,Balance Sheet,Government Property Agency London,00000001/14075,"66,875.00",
Crown Prosecution Service ,08/02/22,Lease liability non current lease payments,Balance Sheet,Government Property Agency London,00000001/14076,"35,778.15",
Crown Prosecution Service ,08/02/22,Lease liability non current lease payments,Balance Sheet,Government Property Agency London,00000001/14085,"89,856.60",
Crown Prosecution Service ,08/02/22,Lease liability non current lease payments,Balance Sheet,Government Property Agency London,00000001/14096,"210,288.00",
Crown Prosecution Service ,08/02/22,Lease liability non current lease payments,Balance Sheet,Government Property Agency London,00000001/14101,"80,407.80",
Crown Prosecution Service ,08/02/22,Lease liability non current lease payments,Balance Sheet,Government Property Agency London,00000001/14102,"106,451.25",
Crown Prosecution Service ,08/02/22,Crown Court Graduated Fee Scheme,North West Crown Court Hub,Lincoln House Chambers,247545 MF,"39,956.88",Y
Crown Prosecution Service ,08/02/22,External legal advice - HR casework,Litigation,Government Legal Department,503531,"45,123.96",Y
Crown Prosecution Service ,09/02/22,Crown Court Graduated Fee Scheme,East Midlands Crown Court Section,36 Bedford Row,214594-MCL,"39,723.24",Y
Crown Prosecution Service ,09/02/22,Crown Court Graduated Fee Scheme,Wessex Crown Court Unit,3PB (3 Paper Buildings),DAJ-374567 - 2,"33,436.44",Y
Crown Prosecution Service ,10/02/22,Crown Court Graduated Fee Scheme,London North Complex Casework Unit,6 Kings Bench Walk- Chambers of D Fisher & D Perry,99556 TC,"69,532.20",Y
Crown Prosecution Service ,10/02/22,Crown Court Graduated Fee Scheme,London North Complex Casework Unit,QEB Hollis Whiteman Chambers,KB 108347 C,"34,018.80",Y
Crown Prosecution Service ,11/02/22,Crown Court Very High Cost Cases Full Scheme,Organised Crime London,2 Harcourt Buildings,105126/JOJ,"35,730.00",Y
Crown Prosecution Service ,11/02/22,Professional subscriptions and memberships,Operational Change,Crimeline Training Ltd Wigan,15344,"40,273.20",Y
Crown Prosecution Service ,11/02/22,Crown Court Graduated Fee Scheme,North West Crown Court Hub,Lincoln House Chambers,244999 IT,"33,227.16",Y
Crown Prosecution Service ,11/02/22,Crown Court Graduated Fee Scheme,North West Crown Court Hub,Lincoln House Chambers,244999 NF,"47,665.68",Y
Crown Prosecution Service ,14/02/22,Crown Court Graduated Fee Scheme,London North Complex Casework Unit,Furnival Chambers,168496 SON JohnO'She,"42,323.58",Y
Crown Prosecution Service ,14/02/22,Crown Court Graduated Fee Scheme,East Midlands Crown Court Section,Bank House Chambers,187471 klg,"25,975.20",Y
Crown Prosecution Service ,14/02/22,Crown Court Graduated Fee Scheme,North West Crown Court Hub,Lincoln House Chambers,248056 LH,"27,506.88",Y
Crown Prosecution Service ,14/02/22,IT services,Other IT costs,Lumen Technologies UK Ltd,280136276/1069999,"45,600.97",Y
Crown Prosecution Service ,14/02/22,Recoverable VAT control,Balance Sheet,Lumen Technologies UK Ltd,280149961/1073732,"23,527.96",Y
Crown Prosecution Service ,14/02/22,IT services,PSN Services Contract,Lumen Technologies UK Ltd,280149961/1073732,"117,639.82",
Crown Prosecution Service ,14/02/22,Recoverable VAT control,Balance Sheet,Lumen Technologies UK Ltd,280149963/1071012,"25,432.56",Y
Crown Prosecution Service ,14/02/22,IT services,PSN Connectivity Contract,Lumen Technologies UK Ltd,280149963/1071012,"127,162.83",
Crown Prosecution Service ,14/02/22,Crown Court Graduated Fee Scheme,West Midlands RASSO Unit,No 5 Fountain Court Chambers,775454/MH/OPBEAM,"43,608.60",Y
Crown Prosecution Service ,14/02/22,Crown Court Graduated Fee Scheme,East Midlands Complex Casework Unit,No 5 Fountain Court Chambers,787446/MLH/OP RAKO,"42,332.70",Y
Crown Prosecution Service ,14/02/22,Intangibles asset purchase clearing CMS,DTS ICT Capital Expenditure,CGI IT UK Ltd,GB014075014,"265,344.10",
Crown Prosecution Service ,14/02/22,Recoverable VAT control,Balance Sheet,CGI IT UK Ltd,GB014075014,"53,068.82",Y
Crown Prosecution Service ,14/02/22,IT services,DTS Programme Project Cost,eSynergy Solutions Ltd,INV00000451,"31,200.00",Y
Crown Prosecution Service ,14/02/22,IT services,DTS Programme Project Cost,eSynergy Solutions Ltd,INV00000452,"168,673.56",Y
Crown Prosecution Service ,14/02/22,IT services,DTS Programme Project Cost,eSynergy Solutions Ltd,INV00000453,"85,830.00",Y
Crown Prosecution Service ,14/02/22,Crown Court Graduated Fee Scheme,London North Complex Casework Unit,3 Raymond Buildings,WEJ/251793,"31,942.68",Y
Crown Prosecution Service ,15/02/22,Landlord service charge,Estate and FM: Programme,Government Property Agency London,00000001/15385,"36,691.47",
Crown Prosecution Service ,15/02/22,Landlord service charge,Estate and FM: Administration,Government Property Agency London,00000001/15385,"1,342.50",
Crown Prosecution Service ,16/02/22,Recoverable VAT control,Balance Sheet,Mendip Media Group Ltd Tiverton,0000000183,"8,015.40",Y
Crown Prosecution Service ,16/02/22,Transcriptions and Translation,Other Corporate Programme Payments,Mendip Media Group Ltd Tiverton,0000000183,"40,077.00",
Crown Prosecution Service ,16/02/22,Recoverable VAT control,Balance Sheet,Oracle Corporation UK Ltd,460015146,"18,640.35",Y
Crown Prosecution Service ,16/02/22,IT non capital software licences,Legal Reference and ICT Licenses,Oracle Corporation UK Ltd,460015146,"93,201.77",
Crown Prosecution Service ,16/02/22,Crown Court Graduated Fee Scheme,North West Crown Court Hub,Park Square Barristers (No 6 and Sovereign merged),LH-248056.CJH,"44,937.12",Y
Crown Prosecution Service ,17/02/22,Recoverable VAT control,Balance Sheet,Caretower Ltd Limited,172069,"12,240.00",Y
Crown Prosecution Service ,17/02/22,IT non capital software licences,Legal Reference and ICT Licenses,Caretower Ltd Limited,172069,"61,200.00",
Crown Prosecution Service ,17/02/22,Recoverable VAT control,Balance Sheet,Trustmarque Solutions Ltd,2335197,"10,627.19",Y
Crown Prosecution Service ,17/02/22,IT non capital software licences,Legal Reference and ICT Licenses,Trustmarque Solutions Ltd,2335197,"53,135.95",
Crown Prosecution Service ,17/02/22,Crown Court Graduated Fee Scheme,Thames and Chiltern RASSO Unit,2 Kings Bench Walk London,293064-GO,"27,126.60",Y
Crown Prosecution Service ,17/02/22,Other managed/contractor services,DTS Programme Project Cost,Equal Experts London,INV-9933,"128,511.00",Y
Crown Prosecution Service ,18/02/22,Facilities management,Estate and FM: Programme,Government Property Agency London,00000001/15513,"36,936.30",
Crown Prosecution Service ,18/02/22,Recoverable VAT control,Balance Sheet,Government Property Agency London,00000001/15513,"7,387.26",Y
Crown Prosecution Service ,18/02/22,Crown Court Graduated Fee Scheme,London North Complex Casework Unit,Furnival Chambers,173347 JDS AlhajiShe,"31,994.40",Y
Crown Prosecution Service ,18/02/22,Crown Court Graduated Fee Scheme,Yorks and Humbs CC Legal,New Park Court Chambers Leeds,363184/STKQC,"26,691.12",Y
Crown Prosecution Service ,18/02/22,External legal advice - Civil litigation,Other Corporate Programme Payments,Government Legal Department,505697,"117,340.46",Y
Crown Prosecution Service ,18/02/22,Crown Court Graduated Fee Scheme,Wessex Crown Court Unit,3 Temple Gardens - Chambers of John Coffey QC,801944 SC,"48,733.56",Y
Crown Prosecution Service ,21/02/22,Crown Court Graduated Fee Scheme,Wessex Crown Court Unit,12 College Place,125621mf,"33,685.80",Y
Crown Prosecution Service ,21/02/22,Data Communications,PSN Services Contract,Lumen Technologies UK Ltd,280827648/1074155,"36,520.63",Y
Crown Prosecution Service ,21/02/22,Crown Court Graduated Fee Scheme,Wessex Crown Court Unit,3PB (3 Paper Buildings),381399 RAL TRIAL2,"39,106.20",Y
Crown Prosecution Service ,21/02/22,Recoverable VAT control,Balance Sheet,Oracle Corporation UK Ltd,460015147,"31,450.45",Y
Crown Prosecution Service ,21/02/22,IT non capital software licences,Legal Reference and ICT Licenses,Oracle Corporation UK Ltd,460015147,"157,252.25",
Crown Prosecution Service ,21/02/22,IT services,DTS Programme Project Cost,Mobilise Cloud Services Limited London,CPSINV033,"41,850.01",Y
Crown Prosecution Service ,21/02/22,Recoverable VAT control,Balance Sheet,CGI IT UK Ltd,GB014074871,"115,059.96",Y
Crown Prosecution Service ,21/02/22,IT services,Apps and Hosting Contract,CGI IT UK Ltd,GB014074871,"575,299.78",
Crown Prosecution Service ,21/02/22,IT services,Apps and Hosting Contract,CGI IT UK Ltd,GB014075088,"50,251.97",
Crown Prosecution Service ,21/02/22,Recoverable VAT control,Balance Sheet,CGI IT UK Ltd,GB014075088,"10,050.39",Y
Crown Prosecution Service ,21/02/22,IT services,DTS Programme Project Cost,CGI IT UK Ltd,GB014075308,"25,303.80",Y
Crown Prosecution Service ,21/02/22,Other Staff Costs,Finance Operations,Edenred,INV25172950,409.00,
Crown Prosecution Service ,21/02/22,Salary sacrifice suspense,Balance Sheet,Edenred,INV25172950,"30,866.70",
Crown Prosecution Service ,21/02/22,Crown Court Graduated Fee Scheme,Special Crime Unit York,9 Gough Chambers London,TL358442AA,"36,028.27",Y
Crown Prosecution Service ,23/02/22,Crown Court Graduated Fee Scheme,London North Crown Court Unit,Nine Bedford Row (9 Bedford Row),142206dh5,"26,775.00",Y
Crown Prosecution Service ,23/02/22,Crown Court Graduated Fee Scheme,West Midlands Complex Casework Unit,9 St John Street (Nine),410434-7/GMW,"34,284.60",Y
Crown Prosecution Service ,24/02/22,Crown Court Graduated Fee Scheme,East of England Complex Casework Unit,5 Paper Buildings,114628/CSU,"34,508.76",Y
Crown Prosecution Service ,24/02/22,Crown Court Graduated Fee Scheme,SFD North,Lincoln House Chambers,244093 TS QC,"36,383.46",Y
Crown Prosecution Service ,24/02/22,Transcriptions and Translation,Other Corporate Programme Payments,AVR Transcription Ltd Bolton,35596-JAN22,"52,646.54",
Crown Prosecution Service ,24/02/22,Recoverable VAT control,Balance Sheet,AVR Transcription Ltd Bolton,35596-JAN22,"10,529.31",Y
Crown Prosecution Service ,24/02/22,Recoverable VAT control,Balance Sheet,Xerox (UK) Ltd,900217107,"34,314.14",Y
Crown Prosecution Service ,24/02/22,Short term leases from 2 to 12 months: IT and Equipment,Print Contract,Xerox (UK) Ltd,900217107,"171,570.73",
Crown Prosecution Service ,24/02/22,Crown Court Graduated Fee Scheme,Special Crime Unit York,2 Bedford Row Chambers,AC 195809,"88,939.38",Y
Crown Prosecution Service ,24/02/22,Crown Court Graduated Fee Scheme,East of England Crown Court,2 Bedford Row Chambers,CA 197820,"53,326.38",Y
Crown Prosecution Service ,24/02/22,Recoverable VAT control,Balance Sheet,CGI IT UK Ltd,GB014075687,"58,309.60",Y
Crown Prosecution Service ,24/02/22,IT services,Apps and Hosting Contract,CGI IT UK Ltd,GB014075687,"291,548.00",
Crown Prosecution Service ,24/02/22,Crown Court Graduated Fee Scheme,Special Crime Unit York,2 Bedford Row Chambers,JAC 195809,"46,910.17",Y
Crown Prosecution Service ,24/02/22,Crown Court Graduated Fee Scheme,SFD London,3 Raymond Buildings,JGY/248643,"26,219.76",Y
Crown Prosecution Service ,24/02/22,Crown Court Graduated Fee Scheme,SFD London,3 Raymond Buildings,JH/248643,"50,602.08",Y
Crown Prosecution Service ,24/02/22,Crown Court Graduated Fee Scheme,East of England Crown Court,2 Bedford Row Chambers,TMD 197820,"31,430.99",Y
Crown Prosecution Service ,25/02/22,Crown Court Graduated Fee Scheme,North East Complex Casework Unit,Nine Bedford Row (9 Bedford Row),123170PGQC,"30,713.88",Y
Crown Prosecution Service ,25/02/22,Crown Court Graduated Fee Scheme,South West Complex Casework Unit,Foundry Chambers (9-12 Bell Yard),193417-1/WH,"29,809.38",Y
Crown Prosecution Service ,28/02/22,Crown Court Graduated Fee Scheme,Wessex Crown Court Unit,3PB (3 Paper Buildings),381399 TE GJIKA,"27,319.20",Y
Crown Prosecution Service ,28/02/22,Crown Court Graduated Fee Scheme,Yorkshire and Humberside Complex Casework Unit,Park Square Barristers (No 6 and Sovereign merged),498705/KR/TRL1,"27,063.30",Y
